Cogmind - Beta 13 @@@ ROGUE MODE // 2024.07.08 @ 21:18:34 Player: saltine Result: Destroyed by G-73 Enforcer with Heavy Laser Performance ------------- Evolutions (7) 3500 Regions Visited (18) 3600 Robots Destroyed (136) 680 Value Destroyed (4863) 4863 Prototype IDs (28) 560 Alien Tech Used (0) 0 Bonus (2281) 2281 TOTAL SCORE: 15484 Bonus ------- Pacifist 200 High Alert Combat Kills 525 Follower Combat Kills 56 Entered Garrisons 200 Acquired ECA 300 Met Warlord at Base 500 MAIN.C Attacked Warlord 500 Cogmind --------- Core Integrity 0/1300 Matter 275/300 Energy 100/100 System Corruption 1% Temperature Cool (18) Movement Core (100) Ox1 Location -3/Research Parts ------- > --- POWER (2) -------- (None) > --- PROPULSION (7) --- (None) > --- UTILITY (9) ------ (None) > --- WEAPON (3) ------- Helical Railgun > --- INVENTORY (5) ---- Heavy Phase Cannon Railgun Peak State ------------ > --- POWER ------------ Micro Fission Core Antimatter Reactor > --- PROPULSION ------- Antigrav System Combat Gravmag System Improved Antigrav System Improved Antigrav System Improved Antigrav System Improved Antigrav System Improved Antigrav System > --- UTILITY ---------- Advanced Heat Sink Encrypted Comm Array Hardened Heavy Armor Plating Improved Medium Armor Plating Makeshift Hacking Suite > --- WEAPON ----------- Vortex Rifle > --- INVENTORY -------- Heavy Phase Cannon Railgun Helical Railgun [Rating: 96] Favorites ----------- Power Deuterium Engine Engine Deuterium Engine Power Core Neutrino Core Reactor Antimatter Reactor Propulsion Light Treads Treads Light Treads Leg Myomer Leg Wheel Armored Huge Wheel Hover Unit Improved Antigrav System Flight Unit Impulse Thruster Array Utility Improved Medium Armor Plating Device Improved Heat Sink Storage Large Storage Unit Hackware Makeshift Hacking Suite Protection Improved Medium Armor Plating Weapon Heavy Particle Cannon Energy Gun Advanced Beam Rifle Energy Cannon Heavy Particle Cannon Ballistic Gun Heavy Assault Rifle Ballistic Cannon Assault Cannon Launcher Improved Grenade Launcher Special Weapon RU-N14's Throwing Claymores v3 Special Melee Weapon Dirty Datajack Build | -11 -10 -9 -8 -8 -8 -7 -6 -5 -5 -5 -5 -5 -5 -4 -4 -4 -4 -3 ------- Run | Yrd Mat Mat Mat Gar Mat Fac Fac Fac Was Fac Upp Upp War Pro Fac Upp Upp Res Slots Evolved 14 | . . 2 2 . . 2 2 2 . . . . . . 2 . . 2 Power 1 | . . . . . . . . . . . . . . . 1 . . . Propulsion 5 | . . 1 1 . . 1 . 1 . . . . . . 1 . . . Utility 7 | . . 1 1 . . 1 1 1 . . . . . . . . . 2 Weapon 1 | . . . . . . . 1 . . . . . . . . . . . Parts Attached 173 | 6 1 15 1 24 21 12 37 5 1 13 4 . 18 . 6 1 2 6 Power 17 | 1 . 2 . 2 1 1 3 1 . 1 . . 2 . 1 . . 2 Engine 9 | 1 . 2 . 1 1 1 2 . . . . . 1 . . . . . Core 5 | . . . . 1 . . . 1 . 1 . . . . 1 . . 1 Reactor 3 | . . . . . . . 1 . . . . . 1 . . . . 1 Propulsion 62 | 2 . 6 1 7 9 3 13 1 1 5 . . 6 . 3 . 2 3 Treads 45 | 2 . 6 1 7 9 3 11 . . 4 . . . . . . 2 . Leg 1 | . . . . . . . . . . . . . 1 . . . . . Wheel 3 | . . . . . . . 2 . . 1 . . . . . . . . Hover 10 | . . . . . . . . 1 1 . . . 5 . 3 . . . Flight 3 | . . . . . . . . . . . . . . . . . . 3 Utility 43 | 1 1 4 . 7 2 4 7 2 . 5 3 . 6 . 1 . . . Device 24 | . 1 1 . 3 1 1 6 2 . 4 2 . 3 . . . . . Storage 3 | 1 . 1 . . . 1 . . . . . . . . . . . . Processor . | . . . . . . . . . . . . . . . . . . . Hackware 2 | . . . . . . . . . . . 1 . 1 . . . . . Protection 14 | . . 2 . 4 1 2 1 . . 1 . . 2 . 1 . . . Artifact . | . . . . . . . . . . . . . . . . . . . Weapon 51 | 2 . 3 . 8 9 4 14 1 . 2 1 . 4 . 1 1 . 1 Energy Gun 10 | . . . . 2 3 . 1 . . . . . 3 . 1 . . . Energy Cannon 8 | . . 1 . 3 . 1 3 . . . . . . . . . . . Ballistic Gun 9 | 2 . 2 . . 1 . 1 1 . 1 . . . . . . . 1 Ballistic Cannon 11 | . . . . . 3 2 5 . . 1 . . . . . . . . Launcher 9 | . . . . 1 2 1 4 . . . 1 . . . . . . . Special Weapon 3 | . . . . 2 . . . . . . . . 1 . . . . . Impact Weapon . | . . . . . . . . . . . . . . . . . . . Slashing Weapon . | . . . . . . . . . . . . . . . . . . . Piercing Weapon . | . . . . . . . . . . . . . . . . . . . Special Melee Weapon 1 | . . . . . . . . . . . . . . . . 1 . . Unidentified Prototypes 9 | . . . . 1 . . 1 1 . . . . 5 . . . . 1 Parts Lost 77 | . . 2 . 13 . . 36 1 3 . . . . . 8 8 . 6 Power 8 | . . . . 2 . . 3 . 1 . . . . . . 1 . 1 Propulsion 40 | . . 2 . 7 . . 16 . 2 . . . . . 4 4 . 5 Utility 15 | . . . . 2 . . 7 1 . . . . . . 3 2 . . Weapon 14 | . . . . 2 . . 10 . . . . . . . 1 1 . . Highest Loss Streak 13 | . . 2 . 8 . . 13 1 3 . . . . . 3 7 . 3 To Critical Strikes 1 | . . . . . . . . . 1 . . . . . . . . . Average Slot Usage (%) 74 | . 93 94 90 96 99 91 70 16 23 37 71 5 47 76 58 33 8 10 Engine 5 | . 14 10 9 7 9 7 4 . . . . . 3 . . . . . Treads 22 | . 28 31 36 34 36 37 22 . . 5 19 . . . . . 8 2 Hover 3 | . . . . . . . . 4 8 . . . 13 35 28 12 . . Device 10 | . 8 14 9 17 10 5 12 6 4 17 23 5 5 11 6 4 . . Storage 5 | . 14 11 9 9 9 7 5 . . . . . . . . . . . Protection 7 | . . 4 9 9 16 16 4 . . . 4 . 6 11 6 3 . . Energy Gun 3 | . . . . 5 9 2 . . . . . . 7 . 4 . . . Energy Cannon 3 | . . 9 9 10 1 4 5 . . . . . . . . . . . Ballistic Gun 3 | . 28 12 9 . 3 . . 3 4 1 4 . . . . . . . Ballistic Cannon 2 | . . . . . 3 6 8 . . . 4 . . . . . . . Naked Turns 167 | . . . . . . . 21 7 7 13 64 . . . . 24 12 19 Heaviest Build 99 | 13 14 44 44 51 51 90 99 11 11 47 59 . 57 54 57 37 . 18 Greatest Support 120 | 40 40 63 83 83 87 120 120 11 27 112 112 3 69 57 61 50 20 24 Greatest Overweight (x) 6 | 2 . . . . . . 6 . . 1 . . . . 1 . . . Average Overweight (x) . | . . . . . . . . . . . . . . . . . . . Largest Inventory Capacity 20 | 8 8 15 15 15 15 20 20 5 5 5 5 5 5 5 5 5 5 5 Average Capacity 11 | 7 8 14 15 15 15 19 19 5 5 5 5 5 5 5 5 5 5 5 Most Carried 20 | 4 8 15 14 15 15 20 19 5 5 5 5 4 5 5 5 3 3 3 Average Carried 10 | 2 4 13 14 13 14 18 12 4 4 3 4 4 4 5 3 3 3 2 Final Capacity 20 | 8 8 15 15 15 15 20 5 5 5 5 5 5 5 5 5 5 5 5 Final Carried 20 | 4 8 15 14 15 15 20 5 5 5 4 4 4 5 5 3 3 3 2 Class Distribution -------------------- 52% | Mutant 35% | Scavenger-Mutant 3% | Commander-Mutant Dominant Class ---------------- Mutant | -10/Materials Scavenger-Mutant | -9/Materials Scavenger-Mutant | -8/Materials Scavenger-Mutant | -8/Garrison Mutant | -8/Materials Mutant | -7/Factory Tank | -6/Factory Mutant | -5/Factory Mutant | -5/Waste Mutant | -5/Factory Mutant | -5/Upper Caves Mutant | -5/Upper Caves Commander-Mutant | -5/Warlord Scavenger-Mutant | -4/Proximity Caves Scavenger-Mutant | -4/Factory Mutant | -4/Upper Caves Mutant | -4/Upper Caves Mutant | -3/Research Resources | -11 -10 -9 -8 -8 -8 -7 -6 -5 -5 -5 -5 -5 -5 -4 -4 -4 -4 -3 ----------- Run | Yrd Mat Mat Mat Gar Mat Fac Fac Fac Was Fac Upp Upp War Pro Fac Upp Upp Res Matter Collected 3261 | 185 75 315 . 266 482 284 963 97 . 167 162 . 176 4 19 29 . 37 Remotely 590 | . . . . . . . 590 . . . . . . . . . . . Salvage Created 4642 | . . 707 15 1094 924 461 928 122 . 113 82 . . 20 139 . . 37 Parts 277 | . . 47 . 46 51 30 51 14 . 10 5 . . 7 13 . . 3 Haulers Intercepted 7 | . . 2 . . 3 2 . . . . . . . . . . . . Recyclers Shooed 6 | . . 1 . . 3 . 2 . . . . . . . . . . . Parts Field Recycled . | . . . . . . . . . . . . . . . . . . . Retrieved Matter . | . . . . . . . . . . . . . . . . . . . Parts Self-Destructed 19 | . . . . . . . . . . . 10 . . 5 . 4 . . Prevented 2 | . . . . . . . . . . . 1 . . . . 1 . . Kills | -11 -10 -9 -8 -8 -8 -7 -6 -5 -5 -5 -5 -5 -5 -4 -4 -4 -4 -3 ------- Run | Yrd Mat Mat Mat Gar Mat Fac Fac Fac Was Fac Upp Upp War Pro Fac Upp Upp Res Combat Hostiles Destroyed 118 | . . 16 1 22 18 11 26 5 . 2 4 . . 5 7 . . 1 Guns 42 | . . 7 1 2 14 2 . 5 . 2 2 . . . 6 . . 1 Cannons 59 | . . 9 . 19 2 6 19 . . . 2 . . 1 1 . . . AOE 17 | . . . . 1 2 3 7 . . . . . . 4 . . . . Classes Destroyed 12 | . . 7 . 2 1 1 1 . . . . . . . . . . . Worker 6 | . . 1 . . . 1 3 . . . . . . . 1 . . . Builder 4 | . . . . . . 1 3 . . . . . . . . . . . Hauler 7 | . . 2 . . 3 2 . . . . . . . . . . . . Recycler 1 | . . 1 . . . . . . . . . . . . . . . . Swarmer 41 | . . 6 1 3 2 4 4 5 . . 4 . . 5 6 . . 1 Grunt 47 | . . 6 . 12 10 3 16 . . . . . . . . . . . Brawler 2 | . . . . 1 . . 1 . . . . . . . . . . . Duelist 4 | . . 1 . 1 1 . 1 . . . . . . . . . . . Sentry 11 | . . 3 . 3 4 1 . . . . . . . . . . . . Hunter 3 | . . . . . 1 2 . . . . . . . . . . . . Programmer 8 | . . . . 2 . 1 2 . . 2 . . . . 1 . . . Heavy 2 | . . . . . . . 2 . . . . . . . . . . . Best Kill Streak 11 | . . 7 1 7 3 5 11 5 . 2 4 . . 5 3 . . 1 Combat Bots Only 7 | . . 4 1 7 3 4 5 5 . 2 4 . . 5 3 . . 1 Max Kills in Single Turn 5 | . . 2 1 1 2 3 2 1 . 1 1 . . 5 1 . . 1 Gunslinging . | . . . . . . . . . . . . . . . . . . . Exploded 4 | . . . . 1 2 3 1 . . . . . . 4 . . . . Melee . | . . . . . . . . . . . . . . . . . . . Uniques/NPCs Destroyed . | . . . . . . . . . . . . . . . . . . . Combat | -11 -10 -9 -8 -8 -8 -7 -6 -5 -5 -5 -5 -5 -5 -4 -4 -4 -4 -3 -------- Run | Yrd Mat Mat Mat Gar Mat Fac Fac Fac Was Fac Upp Upp War Pro Fac Upp Upp Res Hostile Shots Fired 1324 | . . 117 26 183 70 96 275 42 2 18 69 18 . 4 126 103 . 175 Missed 450 | . . 44 9 52 16 35 60 13 . 6 20 12 . . 48 44 . 91 Damage Taken 15654 | . . 856 129 2042 937 808 4718 474 96 255 916 149 . 84 1422 932 . 1836 Core 4297 | . . 102 8 241 65 45 751 202 52 87 460 141 . . 196 634 . 1313 Absorbed by Shields 49 | . . . . . . . . . . . . . . . 49 . . . Redirected to Shielding 14 | . . . . 14 . . . . . . . . . . . . . . Regen/Repaired (Parts) 21 | . . . . . . . . . . . . . 21 . . . . . Core Remaining (%) 56 | 100 100 74 . . 42 93 11 . . . . . . 5 . . 27 . Volleys Fired 360 | . 3 45 1 81 62 33 73 13 . 13 7 . . 1 25 . . 3 Largest 3 | . 2 2 2 2 2 2 3 1 . 1 3 . . 1 1 . . 1 Hottest 208 | . 40 98 98 150 140 119 208 30 . 33 170 . . . 40 . . 38 Shots Fired 636 | . 6 90 2 134 105 57 171 13 . 13 16 . . 1 25 . . 3 Gun 257 | . 6 63 1 32 72 17 6 13 . 13 7 . . . 24 . . 3 Cannon 359 | . . 27 1 101 31 39 153 . . . 7 . . . . . . . Launcher 18 | . . . . 1 2 1 12 . . . 2 . . . . . . . Special 2 | . . . . . . . . . . . . . . 1 1 . . . Kinetic 288 | . 6 63 1 6 49 29 91 13 . 13 14 . . . . . . 3 Thermal 304 | . . 27 1 127 54 27 68 . . . . . . . . . . . Explosive 17 | . . . . . 2 1 12 . . . . . . 1 1 . . . Electromagnetic 3 | . . . . 1 . . . . . . 2 . . . . . . . Entropic 24 | . . . . . . . . . . . . . . . 24 . . . Robot Hit Streak 25 | . 2 16 1 25 15 12 10 3 . 4 7 . . 2 3 . . 1 Robot Miss Streak 6 | . 1 3 1 5 2 3 6 2 . 3 2 . . . 6 . . 2 Penetration Max 1 | . . . . . . . 1 . . . . . . . . . . 1 Secondary Targets 1 | . . 1 . . . . . . . . . . . . . . . . Max Gunslinging Chain 1 | . . 1 . . . . . . . . . . . . . . . . Shots Hit Robots 402 | . 4 61 1 91 75 36 94 8 . 8 9 . . 1 12 1 . 1 Core Hits 221 | . 1 28 2 40 37 20 61 5 . 3 9 . . 5 8 . . 2 Critical Kills 1 | . . . . . . . . . . 1 . . . . . . . . Critical Parts Destroyed . | . . . . . . . . . . . . . . . . . . . Critical Strikes 10 | . . . . 2 . 1 5 . . 1 1 . . . . . . . Burn 3 | . . . . 2 . . 1 . . . . . . . . . . . Destroy 1 | . . . . . . . . . . 1 . . . . . . . . Blast 6 | . . . . . . 1 4 . . . 1 . . . . . . . Melee Attacks 1 | . . . . . . . . . . . . . . . . 1 . . Impact . | . . . . . . . . . . . . . . . . . . . Slashing . | . . . . . . . . . . . . . . . . . . . Piercing 1 | . . . . . . . . . . . . . . . . 1 . . Sneak Attacks . | . . . . . . . . . . . . . . . . . . . Combat Hostiles . | . . . . . . . . . . . . . . . . . . . Follow-up Attacks . | . . . . . . . . . . . . . . . . . . . Damage Inflicted 13327 | . 40 1061 23 2349 1726 1095 4438 213 . 266 547 17 . 646 757 4 . 145 Guns 3637 | . 40 511 16 359 1059 200 103 213 . 266 108 . . . 647 . . 115 Cannons 6416 | . . 550 . 1867 426 672 2753 . . . 148 . . . . . . . Explosions 3003 | . . . . 123 212 207 1582 . . . 291 . . 588 . . . . Melee 4 | . . . . . . . . . . . . . . . . 4 . . Ramming 156 | . . . 7 . 29 16 . . . . . 17 . . 57 . . 30 Kinetic 4261 | . 40 511 16 43 652 497 1652 213 . 266 256 . . . . . . 115 Thermal 5200 | . . 550 . 2238 833 375 1204 . . . . . . . . . . . Explosive 2589 | . . . . . 212 207 1582 . . . . . . 588 . . . . Electromagnetic 359 | . . . . 68 . . . . . . 291 . . . . . . . Impact . | . . . . . . . . . . . . . . . . . . . Slashing 111 | . . . . . . . . . . . . . . 58 53 . . . Piercing 4 | . . . . . . . . . . . . . . . . 4 . . Entropic 647 | . . . . . . . . . . . . . . . 647 . . . Highest Corruption 6 | . . . . 2 2 1 . . 6 6 5 2 2 . 2 2 2 1 Average Corruption 2 | . . . . 1 2 1 . . 6 5 1 1 2 . 2 2 2 1 Corruption Purged 9 | . . . . . . . . . . 4 5 . . . . . . . Corruption Blocked . | . . . . . . . . . . . . . . . . . . . Effects 43 | . . . . 4 19 1 . . 1 5 1 1 . . 5 5 1 . Message Errors 7 | . . . . . 2 . . . . 2 . . . . 2 1 . . Matter Fused 12 | . . . . 2 4 . . . . 1 . . . . 3 1 1 . Heat Flow Errors 11 | . . . . 2 7 . . . . . 1 . . . . 1 . . Energy Discharges 6 | . . . . . 2 . . . . 2 . 1 . . . 1 . . Parts Rejected 1 | . . . . . 1 . . . . . . . . . . . . . Data Loss (minor) 3 | . . . . . . 1 . . 1 . . . . . . 1 . . Alerts 2 | . . . . . 2 . . . . . . . . . . . . . Weapon Failures 1 | . . . . . 1 . . . . . . . . . . . . . Overload Shots . | . . . . . . . . . . . . . . . . . . . Overflow Damage 222 | . . 17 . 20 . 18 123 . . . 16 . . 28 . . . . Projectiles 153 | . . 17 . 20 . 18 82 . . . 16 . . . . . . . Explosions 69 | . . . . . . . 41 . . . . . . 28 . . . . Melee . | . . . . . . . . . . . . . . . . . . . Knockbacks 21 | . . . . . 4 3 12 . . . 2 . . . . . . . Impact 1 | . . . . . 1 . . . . . . . . . . . . . Kinetic 19 | . . . . . 3 3 11 . . . 2 . . . . . . . Secondary 1 | . . . . . . . 1 . . . . . . . . . . . Self-Inflicted Damage 244 | . . . . . . . 150 . . . 46 8 . . 27 . . 13 Shots 10 | . . . . . . . 5 . . . 5 . . . . . . . Rammed 25 | . . . 3 . 3 1 . . . . . 1 . . 4 . . 13 Targets Rammed 26 | . . . 3 . 3 2 . . . . . 1 . . 4 . . 13 Kicked . | . . . . . . . . . . . . . . . . . . . Crushed 1 | . . . . . . 1 . . . . . . . . . . . . Highest Temperature 384 | . . 75 . 214 255 343 384 . . . 279 . 3 . 45 176 . . Average Temperature 89 | . . 25 . 67 84 108 129 . . . 120 . 3 . 17 41 . . Received Heat Transfer 3207 | . . 87 . 999 333 120 1317 9 . . 63 9 . . 90 18 . 162 Effects 2 | . . . . . . 2 . . . . . . . . . . . . Interference 2 | . . . . . . 2 . . . . . . . . . . . . Siege Activations . | . . . . . . . . . . . . . . . . . . . Robots Corrupted . | . . . . . . . . . . . . . . . . . . . Combat Hostiles . | . . . . . . . . . . . . . . . . . . . Parts Fried . | . . . . . . . . . . . . . . . . . . . Impact Corruptions . | . . . . . . . . . . . . . . . . . . . Robots Melted . | . . . . . . . . . . . . . . . . . . . Combat Hostiles . | . . . . . . . . . . . . . . . . . . . Parts Melted 12 | . . 2 . 6 2 1 1 . . . . . . . . . . . Heat Transferred 8163 | . . 814 . 3314 1554 629 1852 . . . . . . . . . . . Parts Sabotaged 4 | . . . . . . . 4 . . . . . . . . . . . Parts Stolen . | . . . . . . . . . . . . . . . . . . . Parts Stripped . | . . . . . . . . . . . . . . . . . . . Power Chain Reactions 1 | . . . . 1 . . . . . . . . . . . . . . Alert | -11 -10 -9 -8 -8 -8 -7 -6 -5 -5 -5 -5 -5 -5 -4 -4 -4 -4 -3 ------- Run | Yrd Mat Mat Mat Gar Mat Fac Fac Fac Was Fac Upp Upp War Pro Fac Upp Upp Res Peak Influence 677 | . 50 266 125 650 643 514 677 378 162 171 . . . . 437 . . 458 Initial 316 | . . 20 79 83 316 291 166 263 132 92 . . . . 103 . . 83 Average 313 | . 16 130 94 401 456 381 423 290 140 115 . . . . 294 . . 201 Maximum Alert Level 2 | . . 1 . 2 2 2 2 1 . . . . . . 2 . . 2 Low Security (%) 32 | 100 100 81 100 16 . . 14 . 100 100 . . . . 14 . . 57 Level 1 31 | . . 18 . 21 23 73 19 100 . . . . . . 72 . . 40 Level 2 36 | . . . . 61 76 26 66 . . . . . . . 13 . . 2 Level 3 . | . . . . . . . . . . . . . . . . . . . Level 4 . | . . . . . . . . . . . . . . . . . . . Level 5 . | . . . . . . . . . . . . . . . . . . . High Security . | . . . . . . . . . . . . . . . . . . . Max Security . | . . . . . . . . . . . . . . . . . . . Squads Dispatched 19 | . 1 1 . . 1 2 9 . . . . . . . 2 . . 3 Investigation 5 | . . 1 . . . 1 1 . . . . . . . 1 . . 1 Extermination 1 | . . . . . . 1 . . . . . . . . . . . . Reinforcement 11 | . 1 . . . 1 . 6 . . . . . . . 1 . . 2 Assault 1 | . . . . . . . 1 . . . . . . . . . . . Garrison 1 | . . . . . . . 1 . . . . . . . . . . . Intercept . | . . . . . . . . . . . . . . . . . . . Searches Triggered 1 | . . . . . . . . . . . . . . . 1 . . . Construction Impeded 3 | . . . . . . . 3 . . . . . . . . . . . Haulers Reinforced . | . . . . . . . . . . . . . . . . . . . Active Scanning Responses . | . . . . . . . . . . . . . . . . . . . Cargo Convoy Interrupts . | . . . . . . . . . . . . . . . . . . . Stealth | -11 -10 -9 -8 -8 -8 -7 -6 -5 -5 -5 -5 -5 -5 -4 -4 -4 -4 -3 --------- Run | Yrd Mat Mat Mat Gar Mat Fac Fac Fac Was Fac Upp Upp War Pro Fac Upp Upp Res Distress Signals 11 | . . 1 . . 2 1 3 . . . . . . . 1 . . 3 Communications Jammed . | . . . . . . . . . . . . . . . . . . . Distress Signals . | . . . . . . . . . . . . . . . . . . . Times Spotted 258 | . 6 28 4 23 28 13 38 6 6 3 16 4 3 5 26 16 . 33 Peak Tracking Total 14 | . 3 7 4 7 7 5 7 5 6 3 9 6 4 4 8 11 . 14 Tactical Retreats 31 | . . 4 . 2 1 . 3 . . . 3 1 . 2 7 2 . 6 Traps | -11 -10 -9 -8 -8 -8 -7 -6 -5 -5 -5 -5 -5 -5 -4 -4 -4 -4 -3 ------- Run | Yrd Mat Mat Mat Gar Mat Fac Fac Fac Was Fac Upp Upp War Pro Fac Upp Upp Res Traps Triggered 10 | . . 3 . 2 . 1 1 1 . . . . . . 2 . . . Indirectly . | . . . . . . . . . . . . . . . . . . . Trap Hack Attempts . | . . . . . . . . . . . . . . . . . . . Triggered . | . . . . . . . . . . . . . . . . . . . Disarmed 6 | . 6 . . . . . . . . . . . . . . . . . Reprogrammed . | . . . . . . . . . . . . . . . . . . . Reused 1 | . . . . . . . 1 . . . . . . . . . . . Traps Extracted . | . . . . . . . . . . . . . . . . . . . Installed 1 | . . . . . . . 1 . . . . . . . . . . . Triggered 13 | . . . . . . . 1 . . . . . 9 . . 3 . . Most Traps Carried 4 | . . . . 4 4 3 3 2 . . . . . . . . . . Machines | -11 -10 -9 -8 -8 -8 -7 -6 -5 -5 -5 -5 -5 -5 -4 -4 -4 -4 -3 ---------- Run | Yrd Mat Mat Mat Gar Mat Fac Fac Fac Was Fac Upp Upp War Pro Fac Upp Upp Res Machines Disabled 12 | . . . . 3 1 3 3 . . 1 . . . . 1 . . . Max in Single Turn 1 | . . . . 1 1 1 1 . . 1 . . . . 1 . . . Garrison Access 3 | . . . . . 1 . . 1 . 1 . . . . . . . . Garrison Relay 2 | . . . . 2 . . . . . . . . . . . . . . Machines Repaired . | . . . . . . . . . . . . . . . . . . . Machines Dismantled 2 | . . . . 2 . . . . . . . . . . . . . . Machines Sabotaged . | . . . . . . . . . . . . . . . . . . . Overloaded Fab Kills . | . . . . . . . . . . . . . . . . . . . Hacking | -11 -10 -9 -8 -8 -8 -7 -6 -5 -5 -5 -5 -5 -5 -4 -4 -4 -4 -3 --------- Run | Yrd Mat Mat Mat Gar Mat Fac Fac Fac Was Fac Upp Upp War Pro Fac Upp Upp Res Machines Accessed 40 | . 3 6 2 . 7 5 . 2 . 4 1 . 5 . 1 . 1 3 Terminals 24 | . 2 6 1 . 6 2 . 1 . 2 . . . . 1 . . 3 Fabricators 2 | . . . . . . 1 . . . 1 . . . . . . . . Repair Stations . | . . . . . . . . . . . . . . . . . . . Recycling Units 1 | . 1 . . . . . . . . . . . . . . . . . Scanalyzers 1 | . . . . . . 1 . . . . . . . . . . . . Garrison Access 5 | . . . 1 . 1 1 . 1 . 1 . . . . . . . . Total Hacks 92 | . 9 11 7 . 21 7 . 5 . 8 1 . 14 . 1 . 1 7 Successful 42 | . 5 3 3 . 9 2 . 1 . 3 1 . 14 . . . 1 . Failed 50 | . 4 8 4 . 12 5 . 4 . 5 . . . . 1 . . 7 Catastrophic 17 | . 1 4 1 . 2 3 . 1 . 1 . . . . 1 . . 3 Database Lockouts . | . . . . . . . . . . . . . . . . . . . Manual 26 | . 3 4 4 . 8 . . 3 . 2 . . . . 1 . . 1 Terminals 61 | . 7 11 6 . 20 2 . 3 . 4 . . . . 1 . . 7 Fabricators 3 | . . . . . . 2 . . . 1 . . . . . . . . Repair Stations . | . . . . . . . . . . . . . . . . . . . Recycling Units 2 | . 2 . . . . . . . . . . . . . . . . . Scanalyzers 1 | . . . . . . 1 . . . . . . . . . . . . Garrison Access 9 | . . . 1 . 1 2 . 2 . 3 . . . . . . . . Terminal Hacks 33 | . 3 3 2 . 8 . . . . 1 1 . 14 . . . 1 . Record 7 | . . . . . . . . . . . . . 7 . . . . . Prototype ID Bank 9 | . . 2 . . 1 . . . . . . . 6 . . . . . Open Door 3 | . . . . . . . . . . . 1 . 1 . . . 1 . Branch Access Points 1 | . . . . . . . . . . 1 . . . . . . . . Emergency Access Points 1 | . . . . . 1 . . . . . . . . . . . . . Terminal Index 1 | . . . . . 1 . . . . . . . . . . . . . Locate Traps 1 | . . . . . 1 . . . . . . . . . . . . . Disarm Traps 1 | . 1 . . . . . . . . . . . . . . . . . Security Status 2 | . . . 1 . 1 . . . . . . . . . . . . . Patrol Status 1 | . . . . . 1 . . . . . . . . . . . . . Transport Status 1 | . . . . . 1 . . . . . . . . . . . . . Hauler Manifests 3 | . 2 . . . 1 . . . . . . . . . . . . . Registered Components 1 | . . . 1 . . . . . . . . . . . . . . . Zone Layout 1 | . . 1 . . . . . . . . . . . . . . . . Fabricator Hacks 2 | . . . . . . 1 . . . 1 . . . . . . . . Network Status 2 | . . . . . . 1 . . . 1 . . . . . . . . Repair Station Hacks . | . . . . . . . . . . . . . . . . . . . Recycling Unit Hacks 1 | . 1 . . . . . . . . . . . . . . . . . Retrieve Components 1 | . 1 . . . . . . . . . . . . . . . . . Scanalyzer 1 | . . . . . . 1 . . . . . . . . . . . . Insert Component 1 | . . . . . . 1 . . . . . . . . . . . . Garrison Access Hacks 4 | . . . 1 . 1 . . 1 . 1 . . . . . . . . Unlock Access 1 | . . . 1 . . . . . . . . . . . . . . . Seal Access 3 | . . . . . 1 . . 1 . 1 . . . . . . . . Unauthorized Hacks 1 | . 1 . . . . . . . . . . . . . . . . . Terminals 1 | . 1 . . . . . . . . . . . . . . . . . Botnet 1 | . 1 . . . . . . . . . . . . . . . . . Fabricators . | . . . . . . . . . . . . . . . . . . . Repair Stations . | . . . . . . . . . . . . . . . . . . . Recycling Units . | . . . . . . . . . . . . . . . . . . . Scanalyzers . | . . . . . . . . . . . . . . . . . . . Garrison Access . | . . . . . . . . . . . . . . . . . . . Data Cores Recovered . | . . . . . . . . . . . . . . . . . . . Used . | . . . . . . . . . . . . . . . . . . . Hacking Detections 29 | . 2 6 1 . 6 4 . 2 . 4 . . . . 1 . . 3 Full Trace Events 2 | . . . . . . 1 . . . . . . . . . . . 1 Feedback Events . | . . . . . . . . . . . . . . . . . . . Feedback Blocked . | . . . . . . . . . . . . . . . . . . . Robot Schematics Acquired . | . . . . . . . . . . . . . . . . . . . Robots Built . | . . . . . . . . . . . . . . . . . . . Authchips . | . . . . . . . . . . . . . . . . . . . Time . | . . . . . . . . . . . . . . . . . . . Total Robot Build Rating . | . . . . . . . . . . . . . . . . . . . Part Schematics Acquired . | . . . . . . . . . . . . . . . . . . . Parts Built . | . . . . . . . . . . . . . . . . . . . Authchips . | . . . . . . . . . . . . . . . . . . . Time . | . . . . . . . . . . . . . . . . . . . Total Part Build Rating . | . . . . . . . . . . . . . . . . . . . Parts Repaired . | . . . . . . . . . . . . . . . . . . . Time . | . . . . . . . . . . . . . . . . . . . Parts Recycled . | . . . . . . . . . . . . . . . . . . . Recycled Matter . | . . . . . . . . . . . . . . . . . . . Retrieved Matter . | . . . . . . . . . . . . . . . . . . . Retrieved Components 1 | . 1 . . . . . . . . . . . . . . . . . Parts Scanalyzed . | . . . . . . . . . . . . . . . . . . . Part Schematics Acquired . | . . . . . . . . . . . . . . . . . . . Parts Damaged . | . . . . . . . . . . . . . . . . . . . Bothacking | -11 -10 -9 -8 -8 -8 -7 -6 -5 -5 -5 -5 -5 -5 -4 -4 -4 -4 -3 ------------ Run | Yrd Mat Mat Mat Gar Mat Fac Fac Fac Was Fac Upp Upp War Pro Fac Upp Upp Res Used RIF Installer . | . . . . . . . . . . . . . . . . . . . Robots Hacked . | . . . . . . . . . . . . . . . . . . . Non-combat . | . . . . . . . . . . . . . . . . . . . Combat . | . . . . . . . . . . . . . . . . . . . Robot Hacks Applied . | . . . . . . . . . . . . . . . . . . . Relay Couplers Released 13 | . . . . 13 . . . . . . . . . . . . . . Machine Destruction 9 | . . . . 9 . . . . . . . . . . . . . . Programmers 4 | . . . . 4 . . . . . . . . . . . . . . Fabnet Peak Effective % . | . . . . . . . . . . . . . . . . . . . Robots Rewired 5 | . . . . . . . . . . . . . 5 . . . . . Allies Hacked . | . . . . . . . . . . . . . . . . . . . Hacks Repelled . | . . . . . . . . . . . . . . . . . . . Allies | -11 -10 -9 -8 -8 -8 -7 -6 -5 -5 -5 -5 -5 -5 -4 -4 -4 -4 -3 -------- Run | Yrd Mat Mat Mat Gar Mat Fac Fac Fac Was Fac Upp Upp War Pro Fac Upp Upp Res Total Allies 6 | . . . . . . . . . . . 1 . 5 . . . . . Largest Group 5 | . . . . . . . . . . . 1 . 5 3 1 . . . Highest-Rated Group 271 | . . . . . . . . . . . 135 . 271 179 65 . . . Highest-Rated Ally 135 | . . . . . . . . . . . 135 . 65 65 65 . . . Total Orders . | . . . . . . . . . . . . . . . . . . . Ally Attacks 18 | . . . . . . . . . . . . . 18 . . . . . Total Damage 648 | . . . . . . . . . . . . . 648 . . . . . Kills 1 | . . . . . . . . . . . . . 1 . . . . . Allies Corrupted . | . . . . . . . . . . . . . . . . . . . Allies Melted . | . . . . . . . . . . . . . . . . . . . Intel | -11 -10 -9 -8 -8 -8 -7 -6 -5 -5 -5 -5 -5 -5 -4 -4 -4 -4 -3 ------- Run | Yrd Mat Mat Mat Gar Mat Fac Fac Fac Was Fac Upp Upp War Pro Fac Upp Upp Res Robot Analysis Total . | . . . . . . . . . . . . . . . . . . . Derelict Logs Recovered 3 | . . . . . . . . . . . 1 1 . 1 . . . . Drone Launches . | . . . . . . . . . . . . . . . . . . . Drone Recoveries . | . . . . . . . . . . . . . . . . . . . Exploration | -11 -10 -9 -8 -8 -8 -7 -6 -5 -5 -5 -5 -5 -5 -4 -4 -4 -4 -3 ------------- Run | Yrd Mat Mat Mat Gar Mat Fac Fac Fac Was Fac Upp Upp War Pro Fac Upp Upp Res Turns Passed 8440 | 64 346 944 62 1201 1099 913 766 100 59 252 514 180 731 153 432 283 50 291 Spaces Moved 6462 | 36 208 479 33 418 551 511 335 128 97 196 418 357 720 227 648 492 92 516 Core 1057 | 6 . . . . . . 43 41 16 24 168 357 134 . . 78 91 99 Treads 2773 | 30 208 479 33 418 551 511 257 . . 35 250 . . . . . 1 . Legs 126 | . . . . . . . . . . . . . 126 . . . . . Wheels 172 | . . . . . . . 35 . . 137 . . . . . . . . Hover 1917 | . . . . . . . . 87 81 . . . 460 227 648 414 . . Flight 417 | . . . . . . . . . . . . . . . . . . 417 Fastest Speed 39 | 50 160 160 160 160 151 151 50 50 50 50 50 50 46 52 48 50 50 39 Average Speed 102 | 144 160 160 160 160 155 154 147 50 56 105 115 50 76 52 56 57 51 50 Slowest Speed 320 | 160 160 160 160 160 162 156 320 50 61 240 160 50 120 52 121 80 160 85 Overloaded Moves . | . . . . . . . . . . . . . . . . . . . Propulsion Burnouts . | . . . . . . . . . . . . . . . . . . . Robots Hopped 8 | . . . . . . . . . . . . . . . . . . 8 Cave-ins Triggered . | . . . . . . . . . . . . . . . . . . . Exploration Rate (%) 38 | 4 48 51 7 53 67 20 12 3 77 7 54 62 78 42 25 75 18 22 Regions Visited 18 Branch Regions 6 Pre-discovered Areas 1 | . . . . . . . . . . . 1 . . . . . . . Known Exits Taken 2 | . . . 1 . . . . . . 1 . . . . . . . . Unknown Exits Taken 13 | 1 1 1 . . 1 1 1 . . . 1 1 1 1 1 1 1 . Scrap Searched 4 | . . . . . . . . . . . 2 . . 2 . . . . Spaces Dug 1 | . . . . . . . . . . . . . . . 1 . . . Terrain Destroyed 194 | . . 4 1 2 25 4 102 . . 2 7 . . 24 23 . . . Melee . | . . . . . . . . . . . . . . . . . . . Projectile 56 | . . 4 1 . 6 1 25 . . 2 7 . . . 10 . . . AOE 138 | . . . . 2 19 3 77 . . . . . . 24 13 . . . Terrain Rammed . | . . . . . . . . . . . . . . . . . . . Walls Destroyed . | . . . . . . . . . . . . . . . . . . . Machines Disabled . | . . . . . . . . . . . . . . . . . . . Actions | -11 -10 -9 -8 -8 -8 -7 -6 -5 -5 -5 -5 -5 -5 -4 -4 -4 -4 -3 --------- Run | Yrd Mat Mat Mat Gar Mat Fac Fac Fac Was Fac Upp Upp War Pro Fac Upp Upp Res Total 7636 | 45 215 573 38 801 697 578 459 151 101 224 432 357 902 260 685 494 93 531 Wait 404 | . . 4 . 253 20 . 6 . . . 2 . 86 33 . . . . Move 6432 | 35 207 478 33 417 550 510 334 128 96 195 417 356 719 226 647 491 91 502 Hop 6 | . . . . . . . . . . . . . . . . . . 6 Pick Up 84 | 4 4 15 . 15 16 11 5 2 2 3 1 . 4 . 2 . . . Fast Attach 84 | 6 1 10 . 5 4 4 13 5 1 10 2 . 13 . 2 1 2 5 Attach 52 | . . 2 1 12 2 1 21 . . 3 2 . 3 . 4 . . 1 Detach 9 | . . 2 . . . 1 2 . . . 1 . 3 . . . . . Swap 37 | . . 3 . 7 15 7 3 . . . . . 2 . . . . . Drop 74 | . . 14 . 5 25 9 1 3 2 . . . 12 . 1 1 . 1 Fire 360 | . 3 45 1 81 62 33 73 13 . 13 7 . . 1 25 . . 3 Melee 1 | . . . . . . . . . . . . . . . . 1 . . Ram 18 | . . . . . . . . . . . . 1 . . 4 . . 13 Kick . | . . . . . . . . . . . . . . . . . . . Crush 8 | . . . 3 . 3 2 . . . . . . . . . . . . Escape Stasis . | . . . . . . . . . . . . . . . . . . . Rewire 60 | . . . . . . . . . . . . . 60 . . . . . Trap 1 | . . . . . . . 1 . . . . . . . . . . . Miscellaneous 6 | . . . . 6 . . . . . . . . . . . . . . Route ------- -11/Scrapyard -10/Materials (discovered 4 exits: *Mat x2 / [*Min x2]) -9/Materials (discovered 3 exits: *Mat / [*Sto x2]) -8/Materials -8/Garrison -8/Materials -7/Factory (discovered 2 exits: [*Fac] / [*Low]) -6/Factory -5/Factory -5/Waste -5/Factory (discovered 2 exits: *Upp x2) -5/Upper Caves -5/Upper Caves -5/Warlord -4/Proximity Caves -4/Factory (discovered 2 exits: [*Upp] / [*Ext]) -4/Upper Caves -4/Upper Caves -3/Research (discovered 1 exit: Arm) History --------- Turn | Location | Event 7 | -11/Scrapyard | Discovered new exit (range 15) 65 | -11/Scrapyard | Entered Materials 102 | -10/Materials | Discovered new exit (range 12) 251 | -10/Materials | Discovered new exit (range 16) 308 | -10/Materials | Build established: Mutant 333 | -10/Materials | Discovered new exit (range 7) 355 | -10/Materials | Discovered new exit (range 14) 411 | -10/Materials | Entered another Materials area 411 | -9/Materials | Evolved 2 slots: Propulsion x1, Utility x1 816 | -9/Materials | Discovered new exit (range 15) 961 | -9/Materials | Build established: Scavenger-Mutant 1084 | -9/Materials | Discovered new exit (range 11) 1339 | -9/Materials | Discovered new exit (range 10) 1355 | -9/Materials | Entered another Materials area 1355 | -8/Materials | Evolved 2 slots: Propulsion x1, Utility x1 1417 | -8/Materials | Identified exit to Garrison 1417 | -8/Materials | Entered Garrison 1483 | -8/Garrison | Triggered checkpoint 1553 | -8/Garrison | Garrison Relay disabled 1649 | -8/Garrison | Triggered checkpoint 1674 | -8/Garrison | Triggered checkpoint 1730 | -8/Garrison | Lost 8 parts (1p4n2u1w) 1738 | -8/Garrison | Destroyed 7 combat bots 1810 | -8/Garrison | Discovered new exit (range 10) 1849 | -8/Garrison | Triggered checkpoint 1910 | -8/Garrison | Lost 3 parts (1p2n) 2027 | -8/Garrison | Garrison Relay disabled 2618 | -8/Garrison | Entered Materials 3232 | -8/Materials | Build established: Mutant 3613 | -8/Materials | Core integrity fell below 50% 3667 | -8/Materials | Discovered new exit (range 11) 3717 | -8/Materials | Entered Factory 3717 | -7/Factory | Evolved 2 slots: Propulsion x1, Utility x1 4158 | -7/Factory | Discovered new exit (range 7) 4566 | -7/Factory | Discovered new exit (range 14) 4630 | -7/Factory | Entered another Factory area 4630 | -6/Factory | Evolved 2 slots: Utility x1, Weapon x1 4980 | -6/Factory | First assault squad dispatched 4983 | -6/Factory | Garrison activated, responded to threat 5010 | -6/Factory | Lost 13 parts (8n3u2w) 5011 | -6/Factory | Found Prototype Device 5011 | -6/Factory | Identified Active Sensor Suite 5216 | -6/Factory | Core integrity fell below 50% 5240 | -6/Factory | Lost 9 parts (2p2n1u4w) 5331 | -6/Factory | Lost 7 parts (3n1u3w) 5365 | -6/Factory | Released all parts (2) 5380 | -6/Factory | Core integrity fell below 20% 5388 | -6/Factory | Discovered new exit (range 15) 5396 | -6/Factory | Entered another Factory area 5396 | -5/Factory | Evolved 2 slots: Propulsion x1, Utility x1 5409 | -5/Factory | Lost 6 parts (1p3n1u1w) 5496 | -5/Factory | Sucked down chute 5496 | -5/Factory | Entered Waste 5508 | -5/Waste | Found Gamma Bomb Array 5508 | -5/Waste | Spotted C-40 Crusher 5511 | -5/Waste | EMP discharged 5514 | -5/Waste | Spotted C-40 Crusher 5528 | -5/Waste | Spotted C-40 Crusher 5528 | -5/Waste | Spotted C-40 Crusher 5543 | -5/Waste | Spotted C-40 Crusher 5543 | -5/Waste | Spotted C-40 Crusher 5546 | -5/Waste | Crushed by Compactor (1 part destroyed, 1 dropped) 5548 | -5/Waste | Crushed by Compactor (1 part destroyed, 1 dropped) 5551 | -5/Waste | Discovered new exit (range 10) 5555 | -5/Waste | Entered Factory 5579 | -5/Factory | Lost 3 parts (1p2n) 5708 | -5/Factory | Discovered new exit (range 6) 5788 | -5/Factory | Identified exit to Upper Caves 5807 | -5/Factory | Entered Upper Caves 5886 | -5/Upper Caves | Met a Warlord Commander 5887 | -5/Upper Caves | Learned location of Warlord (-5) 5888 | -5/Upper Caves | Warlord Commander delivered Encrypted Comm Array 5892 | -5/Upper Caves | Found Encrypted Comm Array 6066 | -5/Upper Caves | Encountered a Warlord checkpoint 6088 | -5/Upper Caves | Learned Factory terminal intel 6180 | -5/Upper Caves | Attracted the attention of an 0b10 outpost 6237 | -5/Upper Caves | Released all parts (15) 6241 | -5/Upper Caves | Core integrity fell below 50% 6258 | -5/Upper Caves | Lost 3 allies 6312 | -5/Upper Caves | Core integrity fell below 20% 6316 | -5/Upper Caves | Discovered new exit (range 11) 6321 | -5/Upper Caves | Entered another Upper Caves area 6329 | -5/Upper Caves | Learned Factory non-interactive machine intel 6430 | -5/Upper Caves | Attracted the attention of an 0b10 checkpoint 6499 | -5/Upper Caves | Discovered new exit (range 5) 6501 | -5/Upper Caves | Entered Warlord 6522 | -5/Warlord | System corruption cleaned by Quarantine Array 6703 | -5/Warlord | Visited the Vortex Lab 6711 | -5/Warlord | Found Prototype Energy Gun 6711 | -5/Warlord | Identified Vortex Rifle 6716 | -5/Warlord | Found Prototype Energy Gun 6716 | -5/Warlord | Identified Vortex Shotgun 6722 | -5/Warlord | Warlord's base attacked by MAIN.C 6839 | -5/Warlord | Met Warlord 6862 | -5/Warlord | Found Prototype Device 6862 | -5/Warlord | Identified Minesniffer Drone Bay 6880 | -5/Warlord | Found Prototype Special Weapon 6880 | -5/Warlord | Identified RU-N14's Throwing Claymores v3 6987 | -5/Warlord | Spotted B-86 Titan 7072 | -5/Warlord | Warlord forces counterattacked 7083 | -5/Warlord | Spotted B-75 Beast 7088 | -5/Warlord | Spotted B-86 Titan 7134 | -5/Warlord | Lost 7 allies 7152 | -5/Warlord | Found Prototype Device 7152 | -5/Warlord | Identified Adv. Kinecellerator 7166 | -5/Warlord | Discovered new exit (range 15) 7232 | -5/Warlord | Entered Proximity Caves 7232 | -4/Proximity Caves | Accompanied by 4 allies 7348 | -4/Proximity Caves | Discovered new exit (range 6) 7385 | -4/Proximity Caves | Entered Factory 7385 | -4/Factory | Accompanied by 1 ally 7385 | -4/Factory | Evolved 2 slots: Power x1, Propulsion x1 7386 | -4/Factory | Loaded intel: 156 non-interactive machine locations 7387 | -4/Factory | Loaded intel: 26 terminal locations 7404 | -4/Factory | Build established: Scavenger-Mutant 7583 | -4/Factory | Lost 3 parts (1n2u) 7632 | -4/Factory | Discovered new exit (range 9) 7635 | -4/Factory | Search patrols dispatched 7810 | -4/Factory | Discovered new exit (range 14) 7817 | -4/Factory | Entered Upper Caves 7854 | -4/Upper Caves | Lost 3 parts (2n1w) 8069 | -4/Upper Caves | Core integrity fell below 50% 8076 | -4/Upper Caves | Spotted B-86 Titan 8098 | -4/Upper Caves | Discovered new exit (range 5) 8100 | -4/Upper Caves | Entered another Upper Caves area 8105 | -4/Upper Caves | Build established: Mutant 8107 | -4/Upper Caves | Lost 7 parts (1p3n2u1w) 8146 | -4/Upper Caves | Discovered new exit (range 10) 8150 | -4/Upper Caves | Entered Research 8150 | -3/Research | Evolved 2 slots: Utility x2 8151 | -3/Research | Identified exit to Armory 8403 | -3/Research | Core integrity fell below 50% 8425 | -3/Research | Core integrity fell below 20% 8441 | -3/Research | Destroyed by G-73 Enforcer with Heavy Laser Last Messages --------------- dispatching Cutter reinforcements to area. 08411_ Slug penetrates Wall. 08413_ C-30 ARC bursts open, deploying its payload. 08413_ G-73 Enforcer unfolds itself. 08413_ G-67 Veteran unfolds itself. 08415_ Field Propulsion Drive destroyed. 08415_ Slammed into G-73 Enforcer. 08417_ Slammed into G-67 Veteran. 08419_ Acquired 37 matter. 08419_ Slammed into G-67 Veteran. 08421_ Destabilizing: System corrupted (+1). 08422_ Slammed into G-67 Veteran. 08425_ Destabilizing: Core damaged (-52). 08426_ Slammed into G-67 Veteran. 08431_ K-01 Serf collects debris. 08434_ Identified Helical Railgun. 08435_ Slug penetrates Wall. 08437_ Slug penetrates G-73 Enforcer. 08439_ S-43 Plague destroyed. Map ----- +----------------------------------------------------+ | ?????????????????????????????????????????????????? | | ?????????????????????????????????????????????????? | | ?????????????????????????????????????????????????? | | ?????????????????????????????????????????????????? | | ?????????????????????????????????????????????????? | | ?????????????????????????????????????????????????? | | ?????????????????????????????????????????????????? | | ?????????????????????????????????????????????????? | | ?????????????????????????????????????????????????? | | ?????????????????????????????????????????????????? | | ?????????????????????????????????????????????????? | | ?????????????????????????????????????????????????? | | ?????????????????????????????????????????????????? | | ?????????????????????????????????????????????????? | | ?????????????????????????????????????????????????? | | ?????????????????????????????????????????????????? | | ?????????????????????????????????????????????????? | | ??????????????###########????????????????????????? | | ??????????????# #????????????????????????? | | ??????????????#! #????????????????????????? | | ??????????????# ! ########?????????????????? | | ??????????????# # #?????????????????? | | ??????????????########+## #?????????????????? | | ????????????????????# #= #?????????????????? | | ????????????????????# sg= #?????????????????? | | ????????????????????# #@ ! #?????????????????? | | ????????????????????##%## #?????????????????? | | ?????????????????????#%#########?????????????????? | | ?????????????????????#%#?????????????????????????? | | ?????????????????????#%#?????????????????????????? | | ?????????????????????#%#?????????????????????????? | | ????????????????????##%#?????????????????????????? | | ??????????????????? #%#?????????????????????????? | | ???????????????? #%#?????????????????????????? | | ?????????????? """" # #?????????????????????????? | | ??????????????""""" ]# #?????????????????????????? | | ???????????????"""" ?# #?????????????????????????? | | ???????????????"""" ?# #?????????????????????????? | | ???????????????? ??# #?????????????????????????? | | ???????????????? ??# #?????????????????????????? | | ??????# ######+#### #????###??????????????????? | | ?? #?? #??????????????????? | | ?? # #??????????????????? | | ?????## ##### ^ + #??????????????????? | | ??????#????????# # #??????????????????? | | ???????????????# ]#?? ! #??????????????????? | | ???????????????# #???? #??????????????????? | | ???????????????# #??????#??????????????????? | | ???????????????###### #?????????????????????????? | | ???????????????? # #??????#??????????????????? | +----------------------------------------------------+ Best States ------------- Heat Dissipation 67 Coolant Potential 65 Energy Generation 31 Energy Capacity 375 Matter Stores 300 Matter Capacity 300 Sight Range 16 Robot Scan Range 20 Terrain Scan Density 10 Jamming Range 12 EM Shielding 2 Armor Coverage 1050 Core Shielding 20 Weapon Cycling 15 Evasion (%) 62 Recoil Reduction 5 Kinecelleration 40 Offensive Hacking 11 Item Schematics ----------------- None Robot Schematics ------------------ None Fabricated ------------ Nothing Alien Tech Used ----------------- None Achievements -------------- None Challenges ------------ None Game ------ Seed PlatingHeartBooster Manual? 0 Play Time 02:18:52 Cumulative 55.7 hours Start 2024.07.07 @ 16:53:10 End 2024.07.08 @ 21:18:34 Sessions 3 Manual Loads 0 Difficulty Rogue Special Mode None Game No. 63 Rogue 63 Adventurer 0 Explorer 0 Win Type - Total 1 Types 1/0/0/0/0/0/0/0/0 Lore% 40 Gallery% 43 Achievement% 34 Wizard Run 0 Options --------- Layout 1 ASCII 0 Keyboard 0 Movement Arrows Keybinds 0 Fullscreen 2 Font 24/Smallcaps Map View 50x35 Zoom Use 0% Tactical HUD 1 Map Filters NONE Filters NONE Steam 1 RUN: 90cc3f7b-90d2-4628-bb5f-f9fc04545c16